fUST/lending_fUST_20250822
["ID","MTS","AMOUNT","RATE_DAILY","PERIOD"]
[380514349,1755798649796,-556.05,0.0002007,2]
[380514351,1755798649808,-480.0,0.0002007,2]
[380514353,1755798649817,-480.0,0.0002007,2]
[380514355,1755798649826,-480.0,0.0002007,2]
[380514357,1755798649835,-480.0,0.0002007,2]
[380514359,1755798649845,-480.0,0.0002007,2]
[380514361,1755798649854,-494.94,0.0002007,2]
[380514363,1755798649863,-480.0,0.0002007,2]
[380514365,1755798649873,-480.0,0.0002007,2]
[380514367,1755798649881,-639.33,0.0002007,2]
[380514369,1755798649890,-604.00888814,0.0002007,2]
[380514371,1755798649900,-480.0,0.0002007,2]
[380514373,1755798649909,-480.0,0.0002007,2]
[380514375,1755798649918,-1760.29,0.0002007,2]
[380514377,1755798649927,-480.0,0.0002007,2]
[380514379,1755798649936,-480.0,0.0002007,2]
[380514381,1755798649945,-480.0,0.0002007,2]
[380514383,1755798649954,-480.0,0.0002007,2]
[380514385,1755798649964,-480.0,0.0002007,2]
[380514387,1755798649973,-480.0,0.0002007,2]
[380514389,1755798649982,-590.52,0.0002007,2]
[380514391,1755798649992,-480.0,0.00020071,2]
[380514392,1755798650001,-480.0,0.00020071,2]
[380514394,1755798650011,-480.0,0.00020071,2]
[380514396,1755798650019,-480.0,0.00020071,2]
[380514398,1755798650029,-480.0,0.00020071,2]
[380514400,1755798650038,-480.0,0.00020071,2]
[380514402,1755798650050,-480.0,0.00020071,2]
[380514404,1755798650060,-480.0,0.00020071,2]
[380514406,1755798650069,-480.0,0.00020071,2]
[380514408,1755798650078,-480.0,0.00020071,2]
[380514410,1755798650089,-635.25,0.00020071,2]
[380514412,1755798650099,-480.0,0.00020071,2]
[380514414,1755798650108,-480.0,0.00020071,2]
[380514416,1755798650118,-480.0,0.00020071,2]
[380514418,1755798650128,-480.0,0.00020071,2]
[380514420,1755798650137,-799.42,0.00020071,2]
[380514422,1755798650146,-480.0,0.00020071,2]
[380514424,1755798650155,-318.20893785,0.00020071,2]
[380514426,1755798650164,-480.0,0.00020071,2]
[380514428,1755798650173,-480.0,0.00020071,2]
[380514429,1755798650182,-480.0,0.00020071,2]
[380514430,1755798650192,-480.0,0.00020071,2]
[380514432,1755798650203,-480.0,0.00020071,2]
[380514434,1755798650213,-480.0,0.00020071,2]
[380514436,1755798650222,-480.0,0.00020071,2]
[380514438,1755798650232,-480.0,0.00020071,2]
[380514440,1755798650241,-480.0,0.00020071,2]
[380514442,1755798650250,-480.0,0.00020071,2]
[380514444,1755798650259,-480.0,0.00020071,2]
[380514446,1755798650269,-480.0,0.00020071,2]
[380514448,1755798650279,-480.0,0.00020071,2]
[380514450,1755798650288,-480.0,0.00020071,2]
[380514452,1755798650298,-480.0,0.00020071,2]
[380514454,1755798650307,-3911.80826851,0.00020082,2]
[380514456,1755798650316,-4000.0,0.00020103,4]
[380514458,1755798650326,-480.0,0.0002017,2]
[380514460,1755798650335,-480.0,0.0002017,2]
[380514462,1755798650344,-480.0,0.0002017,2]
[380514464,1755798650353,-480.0,0.0002017,2]
[380514466,1755798650362,-480.0,0.0002017,2]
[380514468,1755798650371,-480.0,0.00020173,2]
[380514470,1755798650380,-578.48,0.00020173,2]
[380514472,1755798650389,-480.0,0.00020173,2]
[380514474,1755798650399,-480.0,0.00020173,2]
[380514476,1755798650408,-480.0,0.00020173,2]
[380514478,1755798650417,-480.0,0.00020173,2]
[380514480,1755798650428,-480.0,0.00020173,2]
[380514482,1755798650439,-480.0,0.00020173,2]
[380514484,1755798650448,-377.181123,0.00020187,2]
[380514486,1755798650457,-1000.0,0.000202,2]
[380514488,1755798650466,-958.46862542,0.00020221,2]
[380514490,1755798650475,-1000.0,0.00020221,2]
[380514491,1755798650484,-480.0,0.00020232,2]
[380514492,1755798650493,-480.0,0.00020232,2]
[380514494,1755798650502,-480.0,0.00020233,2]
[380514496,1755798650511,-674.49,0.00020233,2]
[380514498,1755798650520,-862.49,0.00020233,2]
[380514500,1755798650530,-730.52,0.00020233,2]
[380514502,1755798650540,-2992.55,0.00020233,2]
[380514504,1755798650549,-480.0,0.00020234,2]
[380514506,1755798650558,-609.58,0.00020234,2]
[380514508,1755798650567,-1761.08,0.00020234,2]
[380514510,1755798650577,-5081.96,0.00020234,2]
[380514512,1755798650586,-480.0,0.00020234,2]
[380514514,1755798650595,-480.0,0.00020234,2]
[380514516,1755798650606,-1099.74,0.00020234,2]
[380514518,1755798650615,-480.0,0.00020234,2]
[380514520,1755798650625,-480.0,0.00020234,2]
[380514522,1755798650636,-754.87,0.00020234,2]
[380514524,1755798650646,-480.0,0.00020234,2]
[380514526,1755798650655,-480.0,0.00020234,2]
[380514528,1755798650664,-4586.59,0.00020234,2]
[380514530,1755798650676,-4179.87,0.00020234,2]
[380514532,1755798650687,-3124.04,0.00020234,2]
[380514534,1755798650696,-595.07,0.00020234,2]
[380514536,1755798650705,-480.0,0.00020234,2]
[380514538,1755798650714,-480.0,0.00020234,2]
[380514540,1755798650723,-480.0,0.00020234,2]
[380514541,1755798650733,-2044.44,0.00020234,2]
[380514544,1755798650744,-889.73,0.00020234,2]
[380514546,1755798650753,-2890.7,0.00020234,2]
[380514548,1755798650762,-480.0,0.00020234,2]
[380514550,1755798650772,-262.92745795,0.00020234,2]
[380514552,1755798650782,-480.0,0.00020234,2]
[380514554,1755798650791,-480.0,0.00020234,2]
[380514556,1755798650801,-876.44,0.00020234,2]
[380514558,1755798650811,-182.88175493,0.00020234,2]
[380514560,1755798650820,-480.0,0.00020234,2]
[380514562,1755798650832,-480.0,0.00020234,2]
[380514564,1755798650844,-480.0,0.00020234,2]
[380514567,1755798650858,-480.0,0.00020234,2]
[380514569,1755798650870,-1169.46,0.00020234,2]
[380514571,1755798650882,-1078.29,0.00020234,2]
[380514573,1755798650893,-480.0,0.00020243,2]
[380514576,1755798650906,-480.0,0.00020243,2]
[380514578,1755798650918,-1033.16,0.00020243,2]
[380514580,1755798650932,-1678.05,0.00020243,2]
[380514583,1755798650944,-957.28,0.00020243,2]
[380514585,1755798650957,-480.0,0.00020243,2]
[380514586,1755798650970,-480.0,0.00020243,2]
[380514587,1755798650982,-480.0,0.00020243,2]
[380514588,1755798650996,-647.49,0.00020243,2]
[380514589,1755798651008,-480.0,0.00020243,2]
[380514590,1755798651020,-1420.27,0.00020243,2]
[380514591,1755798651033,-480.0,0.00020243,2]
[380514592,1755798651047,-480.0,0.00020243,2]
[380514593,1755798651060,-480.0,0.00020243,2]
[380514594,1755798651074,-480.0,0.00020243,2]
[380514595,1755798651088,-480.0,0.00020243,2]
[380514596,1755798651100,-614.7,0.00020243,2]
[380514597,1755798651111,-1678.64,0.00020243,2]
[380514598,1755798651122,-517.14,0.00020243,2]
[380514599,1755798651135,-767.97,0.00020243,2]
[380514600,1755798651147,-480.0,0.00020243,2]
[380514601,1755798651159,-1078.68,0.00020243,2]
[380514602,1755798651172,-1461.11,0.00020243,2]
[380514603,1755798651185,-480.0,0.00020243,2]
[380514604,1755798651197,-480.0,0.00020243,2]
[380514605,1755798651209,-480.0,0.00020243,2]
[380514606,1755798651223,-480.0,0.00020243,2]
[380514607,1755798651236,-480.0,0.00020243,2]
[380514608,1755798651247,-480.0,0.00020243,2]
[380514609,1755798651257,-248.60455411,0.00020243,2]
[380514610,1755798651268,-836.24,0.00020243,2]
[380514611,1755798651280,-480.0,0.00020243,2]
[380514612,1755798651295,-480.0,0.00020243,2]
[380514613,1755798651309,-480.0,0.00020243,2]
[380514614,1755798651321,-793.0,0.00020243,2]
[380514615,1755798651332,-480.0,0.00020243,2]
[380514616,1755798651344,-480.0,0.00020243,2]
[380514617,1755798651356,-1030.12,0.00020243,2]
[380514618,1755798651368,-670.29,0.00020243,2]
[380514619,1755798651380,-480.0,0.00020243,2]
[380514620,1755798651390,-499.33,0.00020244,2]
[380514621,1755798651401,-480.0,0.00020244,2]
[380514622,1755798651412,-480.0,0.00020244,2]
[380514623,1755798651423,-1326.62,0.00020244,2]
[380514624,1755798651434,-480.0,0.00020244,2]
[380514625,1755798651445,-480.0,0.00020244,2]
[380514626,1755798651457,-3284.89,0.00020244,2]
[380514627,1755798651467,-2041.53,0.00020244,2]
[380514628,1755798651479,-480.0,0.00020244,2]
[380514629,1755798651490,-924.89,0.00020244,2]
[380514630,1755798651502,-11152.98,0.00020244,2]
[380514631,1755798651514,-9515.28,0.00020244,2]
[380514632,1755798651525,-1197.74,0.00020244,2]
[380514633,1755798651536,-2074.83,0.00020244,2]
[380514634,1755798651547,-7509.19077126,0.00020245,2]
[380514635,1755798651558,-1000.0,0.00020321,2]
[380514636,1755798651569,-1000.0,0.00020321,2]
[380514637,1755798651581,-1000.0,0.00020321,2]
[380514638,1755798651592,-1000.0,0.00020321,2]
[380514639,1755798651604,-1000.0,0.00020321,2]
[380514640,1755798651616,-350.0,0.00020321,2]
[380514641,1755798651627,-1012.59694506,0.00020321,2]
[380514642,1755798651637,-1000.0,0.00020321,2]
[380514643,1755798651649,-1000.0,0.00020321,2]
[380514644,1755798651660,-501.874881,0.00020321,2]
[380514645,1755798651671,-1000.0,0.00020321,2]
[380514646,1755798651682,-1000.0,0.00020321,2]
[380514647,1755798651693,-500.0,0.00020321,2]
[380514648,1755798651705,-1008.93775355,0.00020321,2]
[380514649,1755798651716,-1000.0,0.00020321,2]
[380514650,1755798651728,-1000.0,0.00020321,2]
[380514651,1755798651740,-1000.0,0.00020321,2]
[380514652,1755798651750,-480.0,0.00020343,2]
[380514653,1755798651761,-480.0,0.00020343,2]
[380514654,1755798651773,-480.0,0.00020343,2]
[380514655,1755798651784,-480.0,0.00020343,2]
[380514656,1755798651795,-723.94,0.00020343,2]
[380514657,1755798651806,-480.0,0.00020343,2]
[380514658,1755798651817,-727.19,0.00020343,2]
[380514659,1755798651828,-480.0,0.00020343,2]
[380514660,1755798651839,-480.0,0.00020343,2]
[380514661,1755798651851,-593.67037726,0.00020343,2]
[380514662,1755798651862,-480.0,0.00020343,2]
[380514663,1755798651873,-480.0,0.00020343,2]
[380514664,1755798651886,-480.0,0.00020343,2]
[380514665,1755798651896,-1507.01,0.00020343,2]
[380514666,1755798651908,-480.0,0.00020343,2]
[380514667,1755798651921,-492.61,0.00020343,2]
[380514668,1755798651935,-524.9,0.00020343,2]
[380514669,1755798651946,-480.0,0.00020343,2]
[380514670,1755798651958,-480.0,0.00020343,2]
[380514671,1755798651969,-1428.16,0.00020343,2]
[380514672,1755798651981,-872.4,0.00020343,2]
[380514673,1755798651992,-483.84,0.00020343,2]
[380514674,1755798652003,-480.0,0.00020343,2]
[380514675,1755798652014,-480.0,0.00020343,2]
[380514676,1755798652026,-480.0,0.00020343,2]
[380514677,1755798652038,-480.0,0.00020343,2]
[380514678,1755798652054,-480.0,0.00020343,2]
[380514679,1755798652065,-480.0,0.00020343,2]
[380514680,1755798652076,-480.0,0.00020343,2]
[380514681,1755798652087,-480.0,0.00020343,2]
[380514682,1755798652098,-480.0,0.00020343,2]
[380514683,1755798652109,-480.0,0.00020343,2]
[380514684,1755798652121,-480.0,0.00020343,2]
[380514685,1755798652132,-480.0,0.00020343,2]
[380514686,1755798652144,-621.19,0.00020343,2]
[380514687,1755798652155,-618.6,0.00020343,2]
[380514688,1755798652166,-3280.11,0.00020343,2]
[380514689,1755798652177,-810.8,0.00020343,2]
[380514690,1755798652188,-480.0,0.00020343,2]
[380514691,1755798652200,-480.0,0.00020343,2]
[380514692,1755798652211,-589.21,0.00020343,2]
[380514693,1755798652222,-621.55,0.00020343,2]
[380514694,1755798652234,-480.0,0.00020343,2]
[380514695,1755798652245,-480.0,0.00020343,2]
[380514696,1755798652257,-480.0,0.00020343,2]
[380514697,1755798652268,-1495.64,0.00020343,2]
[380514698,1755798652279,-480.0,0.00020343,2]
[380514699,1755798652291,-695.63,0.00020343,2]
[380514700,1755798652301,-654.93,0.00020343,2]
[380514701,1755798652312,-865.47,0.00020343,2]
[380514702,1755798652324,-436.75460616,0.00020343,2]
[380514703,1755798652335,-3867.5,0.00020343,2]
[380514704,1755798652346,-7219.66,0.00020343,2]
[380514705,1755798652357,-951.02,0.00020343,2]
[380514706,1755798652367,-1837.57,0.00020343,2]
[380514707,1755798652378,-480.0,0.00020343,2]
[380514708,1755798652389,-818.75,0.00020343,2]
[380514709,1755798652399,-480.0,0.00020343,2]
[380514710,1755798652410,-480.0,0.00020343,2]
[380514711,1755798652421,-548.67,0.00020343,2]
[380514712,1755798652432,-1521.11,0.00020343,2]
[380514713,1755798652443,-1381.99,0.00020343,2]
[380514714,1755798652453,-480.0,0.00020343,2]
[380514715,1755798652464,-480.0,0.00020343,2]
[380514716,1755798652474,-866.39,0.00020343,2]
[380514717,1755798652485,-480.0,0.00020343,2]
[380514718,1755798652496,-480.0,0.00020343,2]
[380514719,1755798652507,-2767.93,0.00020343,2]
[380514720,1755798652518,-480.0,0.00020343,2]
[380514721,1755798652530,-480.0,0.00020343,2]
[380514722,1755798652540,-556.05,0.00020344,2]
[380514723,1755798652551,-480.0,0.00020344,2]
[380514724,1755798652563,-480.0,0.00020344,2]
[380514725,1755798652574,-480.0,0.00020344,2]
[380514726,1755798652585,-480.0,0.00020344,2]
[380514727,1755798652595,-480.0,0.00020344,2]
[380514728,1755798652606,-494.94,0.00020344,2]
[380514729,1755798652617,-480.0,0.00020344,2]
[380514730,1755798652628,-480.0,0.00020344,2]
[380514731,1755798652639,-639.33,0.00020344,2]
[380514732,1755798652650,-480.0,0.00020344,2]
[380514733,1755798652661,-480.0,0.00020344,2]
[380514734,1755798652672,-1760.29,0.00020344,2]
[380514735,1755798652682,-249.95480668,0.00020344,2]
[380514736,1755798652692,-480.0,0.00020344,2]
[380514737,1755798652702,-480.0,0.00020344,2]
[380514738,1755798652711,-480.0,0.00020344,2]
[380514739,1755798652721,-590.52,0.00020344,2]
[380514740,1755798652962,-480.0,0.00020345,2]
[380514741,1755798652976,-443.66953913,0.00020345,2]
[380514742,1755798652986,-480.0,0.00020345,2]
[380514743,1755798652995,-480.0,0.00020345,2]
[380514744,1755798653004,-480.0,0.00020345,2]
[380514745,1755798653013,-480.0,0.00020345,2]
[380514746,1755798653022,-480.0,0.00020345,2]
[380514747,1755798653032,-480.0,0.00020345,2]
[380514748,1755798653043,-480.0,0.00020345,2]
[380514749,1755798653054,-480.0,0.00020345,2]
[380514750,1755798653063,-635.25,0.00020345,2]
[380514751,1755798653073,-480.0,0.00020345,2]
[380514752,1755798653082,-480.0,0.00020345,2]
[380514753,1755798653093,-480.0,0.00020345,2]
[380514754,1755798653103,-480.0,0.00020345,2]
[380514755,1755798653112,-799.42,0.00020345,2]
[380514756,1755798653123,-480.0,0.00020345,2]
[380514757,1755798653133,-480.0,0.00020345,2]
[380514758,1755798653143,-480.0,0.00020345,2]
[380514759,1755798653152,-480.0,0.00020345,2]
[380514760,1755798653162,-480.0,0.00020345,2]
[380514761,1755798653171,-480.0,0.00020345,2]
[380514762,1755798653180,-480.0,0.00020345,2]
[380514763,1755798653189,-480.0,0.00020345,2]
[380514764,1755798653198,-480.0,0.00020345,2]
[380514765,1755798653207,-480.0,0.00020345,2]
[380514766,1755798653216,-480.0,0.00020345,2]
[380514767,1755798653226,-480.0,0.00020345,2]
[380514768,1755798653235,-480.0,0.00020345,2]
[380514769,1755798653245,-480.0,0.00020345,2]
[380514770,1755798653254,-480.0,0.00020345,2]
[380514771,1755798653263,-480.0,0.00020444,2]
[380514772,1755798653272,-480.0,0.00020444,2]
[380514773,1755798653281,-480.0,0.00020444,2]
[380514774,1755798653291,-480.0,0.00020444,2]
[380514775,1755798653300,-480.0,0.00020444,2]
[380514776,1755798653310,-480.0,0.00020447,2]
[380514777,1755798653321,-578.48,0.00020447,2]
[380514778,1755798653330,-480.0,0.00020447,2]
[380514779,1755798653340,-480.0,0.00020447,2]
[380514780,1755798653350,-480.0,0.00020447,2]
[380514781,1755798653359,-480.0,0.00020447,2]
[380514782,1755798653368,-480.0,0.00020447,2]
[380514783,1755798653377,-480.0,0.00020447,2]
[380514784,1755798653387,-480.0,0.00020506,2]
[380514785,1755798653396,-480.0,0.00020506,2]
[380514786,1755798653405,-480.0,0.00020507,2]
[380514787,1755798653415,-674.49,0.00020507,2]
[380514788,1755798653424,-862.49,0.00020507,2]
[380514789,1755798653434,-730.52,0.00020507,2]
[380514790,1755798653443,-2992.55,0.00020507,2]
[380514791,1755798653453,-480.0,0.00020508,2]
[380514792,1755798653463,-609.58,0.00020508,2]
[380514793,1755798653472,-1761.08,0.00020508,2]
[380514794,1755798653481,-5081.96,0.00020508,2]
[380514795,1755798653490,-480.0,0.00020508,2]
[380514796,1755798653500,-480.0,0.00020508,2]
[380514797,1755798653509,-1099.74,0.00020508,2]
[380514798,1755798653519,-480.0,0.00020508,2]
[380514799,1755798653528,-480.0,0.00020508,2]
[380514800,1755798653538,-754.87,0.00020508,2]
[380514801,1755798653547,-480.0,0.00020508,2]
[380514802,1755798653557,-480.0,0.00020508,2]
[380514803,1755798653566,-4586.59,0.00020508,2]
[380514804,1755798653576,-4179.87,0.00020508,2]
[380514805,1755798653585,-3124.04,0.00020508,2]
[380514806,1755798653595,-595.07,0.00020508,2]
[380514807,1755798653605,-480.0,0.00020508,2]
[380514808,1755798653614,-480.0,0.00020508,2]
[380514809,1755798653624,-480.0,0.00020508,2]
[380514810,1755798653633,-2044.44,0.00020508,2]
[380514811,1755798653643,-889.73,0.00020508,2]
[380514812,1755798653652,-2890.7,0.00020508,2]
[380514813,1755798653661,-480.0,0.00020508,2]
[380514814,1755798653671,-480.0,0.00020508,2]
[380514815,1755798653680,-480.0,0.00020508,2]
[380514816,1755798653690,-876.44,0.00020508,2]
[380514817,1755798653699,-480.0,0.00020508,2]
[380514818,1755798653709,-480.0,0.00020508,2]
[380514819,1755798653718,-480.0,0.00020508,2]
[380514820,1755798653728,-480.0,0.00020508,2]
[380514821,1755798653738,-1169.46,0.00020508,2]
[380514822,1755798653747,-1078.29,0.00020508,2]
[380514823,1755798653756,-480.0,0.00020517,2]
[380514824,1755798653766,-480.0,0.00020517,2]
[380514825,1755798653776,-1033.16,0.00020517,2]
[380514826,1755798653785,-1678.05,0.00020517,2]
[380514827,1755798653795,-957.28,0.00020517,2]
[380514828,1755798653804,-480.0,0.00020517,2]
[380514829,1755798653813,-480.0,0.00020517,2]
[380514830,1755798653823,-480.0,0.00020517,2]
[380514831,1755798653832,-647.49,0.00020517,2]
[380514832,1755798653842,-480.0,0.00020517,2]
[380514833,1755798653851,-1420.27,0.00020517,2]
[380514834,1755798653861,-480.0,0.00020517,2]
[380514835,1755798653871,-480.0,0.00020517,2]
[380514836,1755798653881,-480.0,0.00020517,2]
[380514837,1755798653891,-480.0,0.00020517,2]
[380514838,1755798653901,-480.0,0.00020517,2]
[380514839,1755798653910,-614.7,0.00020517,2]
[380514840,1755798653919,-1678.64,0.00020517,2]
[380514841,1755798653928,-517.14,0.00020517,2]
[380514842,1755798653938,-767.97,0.00020517,2]
[380514843,1755798653947,-480.0,0.00020517,2]
[380514844,1755798653956,-1078.68,0.00020517,2]
[380514845,1755798653966,-1461.11,0.00020517,2]
[380514846,1755798653975,-480.0,0.00020517,2]
[380514847,1755798653984,-480.0,0.00020517,2]
[380514848,1755798653994,-480.0,0.00020517,2]
[380514849,1755798654003,-480.0,0.00020517,2]
[380514850,1755798654012,-480.0,0.00020517,2]
[380514851,1755798654022,-480.0,0.00020517,2]
[380514852,1755798654032,-836.24,0.00020517,2]
[380514853,1755798654042,-480.0,0.00020517,2]
[380514854,1755798654052,-480.0,0.00020517,2]
[380514855,1755798654061,-480.0,0.00020517,2]
[380514856,1755798654071,-793.0,0.00020517,2]
[380514857,1755798654080,-519.22472574,0.00020517,2]
[380514858,1755798654091,-480.0,0.00020517,2]
[380514859,1755798654100,-1030.12,0.00020517,2]
[380514860,1755798654110,-670.29,0.00020517,2]
[380514861,1755798654120,-480.0,0.00020517,2]
[380514862,1755798654129,-499.33,0.00020518,2]
[380514863,1755798654140,-480.0,0.00020518,2]
[380514864,1755798654149,-480.0,0.00020518,2]
[380514865,1755798654159,-1326.62,0.00020518,2]
[380514866,1755798654167,-480.0,0.00020518,2]
[380514867,1755798654176,-480.0,0.00020518,2]
[380514868,1755798654185,-3284.89,0.00020518,2]
[380514869,1755798654194,-2041.53,0.00020518,2]
[380514870,1755798654203,-480.0,0.00020518,2]
[380514871,1755798654213,-924.89,0.00020518,2]
[380514872,1755798654222,-11152.98,0.00020518,2]
[380514873,1755798654231,-9515.28,0.00020518,2]
[380514874,1755798654241,-1197.74,0.00020518,2]
[380514875,1755798654250,-2074.83,0.00020518,2]
[380514876,1755798654259,-500.0,0.00020521,2]
[380514877,1755798654268,-1000.0,0.00020521,2]
[380514878,1755798654277,-1000.0,0.00020521,2]
[380514879,1755798654288,-284.0,0.00020576,2]
[380514880,1755798654297,-301.0,0.00020609,2]
[380514881,1755798654307,-480.0,0.00020617,2]
[380514882,1755798654316,-480.0,0.00020617,2]
[380514883,1755798654326,-480.0,0.00020617,2]
[380514884,1755798654336,-723.94,0.00020617,2]
[380514885,1755798654345,-480.0,0.00020617,2]
[380514886,1755798654354,-727.19,0.00020617,2]
[380514887,1755798654364,-480.0,0.00020617,2]
[380514888,1755798654373,-480.0,0.00020617,2]
[380514889,1755798654382,-480.0,0.00020617,2]
[380514890,1755798654391,-480.0,0.00020617,2]
[380514891,1755798654401,-480.0,0.00020617,2]
[380514892,1755798654410,-1507.01,0.00020617,2]
[380514893,1755798654420,-480.0,0.00020617,2]
[380514894,1755798654430,-492.61,0.00020617,2]
[380514895,1755798654440,-524.9,0.00020617,2]
[380514896,1755798654449,-480.0,0.00020617,2]
[380514897,1755798654459,-1428.16,0.00020617,2]
[380514898,1755798654468,-872.4,0.00020617,2]
[380514899,1755798654478,-483.84,0.00020617,2]
[380514900,1755798654487,-480.0,0.00020617,2]
[380514901,1755798654496,-480.0,0.00020617,2]
[380514902,1755798654505,-480.0,0.00020617,2]
[380514903,1755798654514,-480.0,0.00020617,2]
[380514904,1755798654524,-480.0,0.00020617,2]
[380514905,1755798654535,-480.0,0.00020617,2]
[380514906,1755798654544,-480.0,0.00020617,2]
[380514907,1755798654553,-480.0,0.00020617,2]
[380514908,1755798654562,-480.0,0.00020617,2]
[380514909,1755798654571,-480.0,0.00020617,2]
[380514910,1755798654581,-480.0,0.00020617,2]
[380514911,1755798654590,-480.0,0.00020617,2]
[380514912,1755798654599,-621.19,0.00020617,2]
[380514913,1755798654608,-618.6,0.00020617,2]
[380514914,1755798654619,-3280.11,0.00020617,2]
[380514915,1755798654628,-810.8,0.00020617,2]
[380514916,1755798654638,-480.0,0.00020617,2]
[380514917,1755798654647,-480.0,0.00020617,2]
[380514918,1755798654656,-589.21,0.00020617,2]
[380514919,1755798654667,-621.55,0.00020617,2]
[380514920,1755798654676,-480.0,0.00020617,2]
[380514921,1755798654686,-480.0,0.00020617,2]
[380514922,1755798654695,-480.0,0.00020617,2]
[380514923,1755798654704,-1495.64,0.00020617,2]
[380514924,1755798654714,-480.0,0.00020617,2]
[380514925,1755798654723,-695.63,0.00020617,2]
[380514926,1755798654733,-654.93,0.00020617,2]
[380514927,1755798654742,-865.47,0.00020617,2]
[380514928,1755798654751,-3867.5,0.00020617,2]
[380514929,1755798654761,-7219.66,0.00020617,2]
[380514930,1755798654770,-951.02,0.00020617,2]
[380514931,1755798654780,-1837.57,0.00020617,2]
[380514932,1755798654790,-480.0,0.00020617,2]
[380514933,1755798654800,-151.0,0.00020617,2]
[380514934,1755798654809,-151.0,0.00020617,2]
[380514935,1755798654819,-818.75,0.00020617,2]
[380514936,1755798654828,-151.0,0.00020617,2]
[380514937,1755798654838,-151.0,0.00020617,2]
[380514938,1755798654847,-480.0,0.00020617,2]
[380514939,1755798654857,-480.0,0.00020617,2]
[380514940,1755798654866,-548.67,0.00020617,2]
[380514941,1755798654875,-1521.11,0.00020617,2]
[380514942,1755798654884,-151.0,0.00020617,2]
[380514943,1755798654894,-151.0,0.00020617,2]
[380514944,1755798654904,-235.0,0.00020617,2]
[380514945,1755798654913,-151.0,0.00020617,2]
[380514946,1755798654922,-151.0,0.00020617,2]
[380514947,1755798654932,-1381.99,0.00020617,2]
[380514948,1755798654940,-151.0,0.00020617,2]
[380514949,1755798654950,-151.854492,0.00020617,2]
[380514950,1755798654960,-151.0,0.00020617,2]
[380514951,1755798654969,-480.0,0.00020617,2]
[380514952,1755798654978,-480.0,0.00020617,2]
[380514953,1755798654988,-866.39,0.00020617,2]
[380514954,1755798654997,-151.0,0.00020617,2]
[380514955,1755798655007,-151.0,0.00020617,2]
[380514956,1755798655017,-480.0,0.00020617,2]
[380514957,1755798655026,-151.0,0.00020617,2]
[380514958,1755798655036,-2767.93,0.00020617,2]
[380514959,1755798655049,-480.0,0.00020617,2]
[380514960,1755798655059,-480.0,0.00020617,2]
[380514961,1755798655068,-151.0,0.00020617,2]
[380514962,1755798655078,-151.0,0.00020617,2]
[380514963,1755798655090,-151.0,0.00020617,2]
[380514964,1755798655099,-480.0,0.00020617,2]
[380514965,1755798655109,-151.0,0.00020617,2]